[Event "Titled Tuesday Blitz March 28 Early 2023"]
[White "Meissner, Felix"]
[Black "Amilal Munkhdalai"]
[WhiteFideId "24671827"]
[BlackFideId "4903250"]
[WhiteElo "2350"]
[BlackElo "2293"]
[Result "0-1"]
[Round "03"]
[TimeControl "180+2"]
[Date "2023.03.28"]
[WhiteClock "0:00:11"]
[BlackClock "0:00:12"]

1. e4 {[%clk 0:02:56]}  c5 {[%clk 0:03:00]} 2. Nf3 {[%clk 0:02:56]}  Nc6 {[%clk 0:03:00]} 3. Bb5 {[%clk 0:02:55]}  e6 {[%clk 0:03:00]} 4. O-O {[%clk 0:02:55]}  Nge7 {[%clk 0:03:00]} 5. Re1 {[%clk 0:02:55]}  a6 {[%clk 0:02:59]} 6. Bf1 {[%clk 0:02:51]}  d5 {[%clk 0:03:00]} 7. exd5 {[%clk 0:02:52]}  Nxd5 {[%clk 0:03:00]} 8. d4 {[%clk 0:02:53]}  Nf6 {[%clk 0:02:58]} 9. Be3 {[%clk 0:02:50]}  cxd4 {[%clk 0:02:57]} 10. Nxd4 {[%clk 0:02:51]}  Nxd4 {[%clk 0:02:57]} 11. Qxd4 {[%clk 0:02:51]}  Bd6 {[%clk 0:02:47]} 12. Rd1 {[%clk 0:02:47]}  Nd5 {[%clk 0:02:42]} 13. Qxg7 {[%clk 0:02:40]}  Rf8 {[%clk 0:02:36]} 14. Nc3 {[%clk 0:02:36]}  Nxe3 {[%clk 0:02:36]} 15. fxe3 {[%clk 0:02:37]}  Qc7 {[%clk 0:02:36]} 16. Ne4 {[%clk 0:02:22]}  Be5 {[%clk 0:02:32]} 17. Nf6+ {[%clk 0:02:19]}  Ke7 {[%clk 0:02:28]} 18. Ng8+ {[%clk 0:02:16]}  Ke8 {[%clk 0:02:28]} 19. Nf6+ {[%clk 0:02:12]}  Ke7 {[%clk 0:02:27]} 20. Ng8+ {[%clk 0:02:12]}  Rxg8 {[%clk 0:02:01]} 21. Qxg8 {[%clk 0:02:12]}  b5 {[%clk 0:02:02]} 22. Qxh7 {[%clk 0:02:02]}  Bb7 {[%clk 0:02:01]} 23. Qh4+ {[%clk 0:01:58]}  Bf6 {[%clk 0:02:01]} 24. Qb4+ {[%clk 0:01:57]}  Ke8 {[%clk 0:01:59]} 25. Be2 {[%clk 0:01:53]}  Qxc2 {[%clk 0:01:53]} 26. Rd2 {[%clk 0:01:39]}  Qc7 {[%clk 0:01:43]} 27. Rad1 {[%clk 0:01:39]}  Qb6 {[%clk 0:01:30]} 28. Qf4 {[%clk 0:01:35]}  Be7 {[%clk 0:01:26]} 29. Bf3 {[%clk 0:01:34]}  Bxf3 {[%clk 0:01:23]} 30. Qxf3 {[%clk 0:01:35]}  Rc8 {[%clk 0:01:20]} 31. h3 {[%clk 0:01:32]}  Bg5 {[%clk 0:01:14]} 32. Rd7 {[%clk 0:01:25]}  Qxe3+ {[%clk 0:01:00]} 33. Qxe3 {[%clk 0:01:24]}  Bxe3+ {[%clk 0:01:01]} 34. Kh2 {[%clk 0:01:20]}  Rc2 {[%clk 0:01:01]} 35. Rd8+ {[%clk 0:01:01]}  Ke7 {[%clk 0:01:01]} 36. R1d7+ {[%clk 0:01:02]}  Kf6 {[%clk 0:01:00]} 37. Ra8 {[%clk 0:01:00]}  Bf4+ {[%clk 0:00:43]} 38. Kg1 {[%clk 0:00:59]}  Bg3 {[%clk 0:00:43]} 39. Rd1 {[%clk 0:00:56]}  Rxb2 {[%clk 0:00:40]} 40. Rxa6 {[%clk 0:00:56]}  Kg5 {[%clk 0:00:29]} 41. Ra8 {[%clk 0:00:49]}  Bf2+ {[%clk 0:00:26]} 42. Kh2 {[%clk 0:00:48]}  f5 {[%clk 0:00:26]} 43. Rg8+ {[%clk 0:00:39]}  Kf4 {[%clk 0:00:26]} 44. Rd3 {[%clk 0:00:38]}  Ke4 {[%clk 0:00:20]} 45. Rb3 {[%clk 0:00:34]}  Rxa2 {[%clk 0:00:20]} 46. Rxb5 {[%clk 0:00:34]}  f4 {[%clk 0:00:19]} 47. Rb1 {[%clk 0:00:34]}  e5 {[%clk 0:00:18]} 48. Rg5 {[%clk 0:00:32]}  Ra3 {[%clk 0:00:18]} 49. Rb4+ {[%clk 0:00:31]}  Kd5 {[%clk 0:00:17]} 50. Rb5+ {[%clk 0:00:32]}  Kd4 {[%clk 0:00:17]} 51. Rb1 {[%clk 0:00:28]}  Bg3+ {[%clk 0:00:17]} 52. Kg1 {[%clk 0:00:27]}  e4 {[%clk 0:00:17]} 53. Rg8 {[%clk 0:00:25]}  e3 {[%clk 0:00:16]} 54. Rd8+ {[%clk 0:00:24]}  Ke4 {[%clk 0:00:16]} 55. Rb4+ {[%clk 0:00:20]}  Ke5 {[%clk 0:00:16]} 56. Re8+ {[%clk 0:00:19]}  Kd5 {[%clk 0:00:16]} 57. Rb1 {[%clk 0:00:20]}  Kc4 {[%clk 0:00:13]} 58. h4 {[%clk 0:00:13]}  Kd3 {[%clk 0:00:11]} 59. h5 {[%clk 0:00:12]}  Ra5 {[%clk 0:00:12]} 60. h6 {[%clk 0:00:11]}  Rh5 {[%clk 0:00:12]} 61. Rb6 {[%clk 0:00:11]}  Bf2+ {[%clk 0:00:12]} 0-1


[Site "https://www.chess.com"]

[Event "Titled Tuesday Blitz March 28 Early 2023"]
[White "Antonica, Dragos-Andrei"]
[Black "Pniaczek, Marek"]
[WhiteFideId "1246372"]
[BlackFideId "21800421"]
[WhiteElo "2285"]
[BlackElo "2138"]
[Result "0-1"]
[Round "03"]
[TimeControl "180+2"]
[Date "2023.03.28"]
[WhiteClock "0:00:02"]
[BlackClock "0:00:06"]

1. d4 {[%clk 0:02:55]}  Nf6 {[%clk 0:02:59]} 2. Nc3 {[%clk 0:02:52]}  d5 {[%clk 0:02:57]} 3. Bg5 {[%clk 0:02:52]}  g6 {[%clk 0:02:53]} 4. Bxf6 {[%clk 0:02:50]}  exf6 {[%clk 0:02:53]} 5. e3 {[%clk 0:02:51]}  f5 {[%clk 0:02:52]} 6. g3 {[%clk 0:02:51]}  Bg7 {[%clk 0:02:52]} 7. Bg2 {[%clk 0:02:52]}  c6 {[%clk 0:02:52]} 8. Nge2 {[%clk 0:02:51]}  O-O {[%clk 0:02:51]} 9. O-O {[%clk 0:02:52]}  Re8 {[%clk 0:02:47]} 10. Nf4 {[%clk 0:02:52]}  Nd7 {[%clk 0:02:47]} 11. Nce2 {[%clk 0:02:52]}  Nf6 {[%clk 0:02:46]} 12. c4 {[%clk 0:02:52]}  dxc4 {[%clk 0:02:45]} 13. Qc2 {[%clk 0:02:52]}  Ne4 {[%clk 0:02:39]} 14. Rfd1 {[%clk 0:02:48]}  b5 {[%clk 0:02:30]} 15. Nc3 {[%clk 0:02:36]}  Nxc3 {[%clk 0:02:23]} 16. bxc3 {[%clk 0:02:33]}  Qc7 {[%clk 0:02:13]} 17. a4 {[%clk 0:02:29]}  Bb7 {[%clk 0:02:10]} 18. h4 {[%clk 0:02:08]}  a6 {[%clk 0:02:05]} 19. h5 {[%clk 0:01:37]}  Rad8 {[%clk 0:02:00]} 20. hxg6 {[%clk 0:01:11]}  hxg6 {[%clk 0:02:00]} 21. Bf3 {[%clk 0:01:11]}  Bh6 {[%clk 0:01:53]} 22. Ne2 {[%clk 0:00:41]}  Kg7 {[%clk 0:01:47]} 23. Kg2 {[%clk 0:00:41]}  Bg5 {[%clk 0:01:39]} 24. Qa2 {[%clk 0:00:34]}  c5 {[%clk 0:01:30]} 25. d5 {[%clk 0:00:34]}  Bf6 {[%clk 0:01:30]} 26. axb5 {[%clk 0:00:33]}  axb5 {[%clk 0:01:28]} 27. Qa5 {[%clk 0:00:27]}  Qxa5 {[%clk 0:01:04]} 28. Rxa5 {[%clk 0:00:28]}  b4 {[%clk 0:01:04]} 29. Rxc5 {[%clk 0:00:27]}  bxc3 {[%clk 0:01:01]} 30. Rc1 {[%clk 0:00:21]}  g5 {[%clk 0:00:58]} 31. Kg1 {[%clk 0:00:20]}  Rc8 {[%clk 0:00:50]} 32. Rb5 {[%clk 0:00:21]}  Ba6 {[%clk 0:00:45]} 33. Rb6 {[%clk 0:00:21]}  Ra8 {[%clk 0:00:37]} 34. d6 {[%clk 0:00:21]}  Ra7 {[%clk 0:00:37]} 35. Nxc3 {[%clk 0:00:21]}  Bd8 {[%clk 0:00:32]} 36. Rb2 {[%clk 0:00:12]}  Bf6 {[%clk 0:00:26]} 37. Ra2 {[%clk 0:00:12]}  g4 {[%clk 0:00:18]} 38. Bc6 {[%clk 0:00:10]}  Rb8 {[%clk 0:00:15]} 39. d7 {[%clk 0:00:08]}  Bxc3 {[%clk 0:00:13]} 40. Rxc3 {[%clk 0:00:08]}  Rb1+ {[%clk 0:00:13]} 41. Kg2 {[%clk 0:00:08]}  Bb7 {[%clk 0:00:14]} 42. Bxb7 {[%clk 0:00:05]}  Rxa2 {[%clk 0:00:08]} 43. d8=Q {[%clk 0:00:05]}  Raa1 {[%clk 0:00:08]} 44. Qg5+ {[%clk 0:00:05]}  Kf8 {[%clk 0:00:08]} 45. Qh6+ {[%clk 0:00:06]}  Kg8 {[%clk 0:00:08]} 46. Qg5+ {[%clk 0:00:06]}  Kf8 {[%clk 0:00:09]} 47. Qd8+ {[%clk 0:00:06]}  Kg7 {[%clk 0:00:09]} 48. Qd4+ {[%clk 0:00:07]}  Kg8 {[%clk 0:00:09]} 49. f4 {[%clk 0:00:04]}  Rb2+ {[%clk 0:00:06]} 50. Rc2 {[%clk 0:00:02]}  Rxc2+ {[%clk 0:00:06]} 51. Qd2 {[%clk 0:00:02]}  Rxd2# {[%clk 0:00:06]} 0-1


[Site "https://www.chess.com"]

[Event "Titled Tuesday Blitz March 28 Early 2023"]
[White "Aveskulov, Valeriy"]
[Black "Fernandez Garcia, Gumersindo"]
[WhiteFideId "14109743"]
[BlackFideId "24516740"]
[WhiteElo "2552"]
[BlackElo "2093"]
[Result "1-0"]
[Round "03"]
[TimeControl "180+2"]
[Date "2023.03.28"]
[WhiteClock "0:00:22"]
[BlackClock "0:00:13"]

1. e4 {[%clk 0:03:00]}  Nf6 {[%clk 0:02:56]} 2. e5 {[%clk 0:03:00]}  Nd5 {[%clk 0:02:57]} 3. d4 {[%clk 0:03:01]}  Nb6 {[%clk 0:02:57]} 4. Nf3 {[%clk 0:03:01]}  d6 {[%clk 0:02:57]} 5. Be2 {[%clk 0:02:58]}  g6 {[%clk 0:02:57]} 6. a4 {[%clk 0:02:57]}  a5 {[%clk 0:02:55]} 7. O-O {[%clk 0:02:40]}  Bg7 {[%clk 0:02:55]} 8. h3 {[%clk 0:02:36]}  O-O {[%clk 0:02:55]} 9. exd6 {[%clk 0:02:31]}  cxd6 {[%clk 0:02:56]} 10. Nc3 {[%clk 0:02:29]}  Nc6 {[%clk 0:02:56]} 11. Nb5 {[%clk 0:02:29]}  Bf5 {[%clk 0:02:52]} 12. c3 {[%clk 0:02:28]}  d5 {[%clk 0:02:45]} 13. Bf4 {[%clk 0:02:28]}  Rc8 {[%clk 0:02:41]} 14. Qd2 {[%clk 0:02:25]}  Re8 {[%clk 0:02:37]} 15. Rfe1 {[%clk 0:02:25]}  Nc4 {[%clk 0:02:29]} 16. Bxc4 {[%clk 0:02:24]}  dxc4 {[%clk 0:02:30]} 17. Rad1 {[%clk 0:01:54]}  h5 {[%clk 0:02:25]} 18. Qc1 {[%clk 0:01:54]}  Qb6 {[%clk 0:02:19]} 19. Nd2 {[%clk 0:01:38]}  Na7 {[%clk 0:02:16]} 20. Nxa7 {[%clk 0:01:28]}  Qxa7 {[%clk 0:02:17]} 21. Be5 {[%clk 0:01:29]}  Bh6 {[%clk 0:02:14]} 22. Bg3 {[%clk 0:00:45]}  Qa6 {[%clk 0:02:05]} 23. Re2 {[%clk 0:00:39]}  f6 {[%clk 0:01:58]} 24. Rde1 {[%clk 0:00:38]}  Kf7 {[%clk 0:01:58]} 25. Qd1 {[%clk 0:00:34]}  Qb6 {[%clk 0:01:50]} 26. Qa1 {[%clk 0:00:15]}  Bg5 {[%clk 0:01:43]} 27. Ne4 {[%clk 0:00:15]}  Bxe4 {[%clk 0:01:30]} 28. Rxe4 {[%clk 0:00:16]}  Rc6 {[%clk 0:01:24]} 29. Qa3 {[%clk 0:00:15]}  e6 {[%clk 0:01:22]} 30. d5 {[%clk 0:00:14]}  Rc5 {[%clk 0:01:10]} 31. Rxe6 {[%clk 0:00:11]}  Rxe6 {[%clk 0:01:03]} 32. Rxe6 {[%clk 0:00:10]}  Qa7 {[%clk 0:00:54]} 33. h4 {[%clk 0:00:11]}  Bh6 {[%clk 0:00:53]} 34. Bb8 {[%clk 0:00:11]}  Qxb8 {[%clk 0:00:48]} 35. Qxc5 {[%clk 0:00:12]}  Bf8 {[%clk 0:00:49]} 36. Qd4 {[%clk 0:00:12]}  Be7 {[%clk 0:00:47]} 37. Qe4 {[%clk 0:00:12]}  Qc7 {[%clk 0:00:45]} 38. g4 {[%clk 0:00:12]}  Qd7 {[%clk 0:00:45]} 39. gxh5 {[%clk 0:00:12]}  gxh5 {[%clk 0:00:44]} 40. Qh7+ {[%clk 0:00:12]}  Kf8 {[%clk 0:00:44]} 41. Qh8+ {[%clk 0:00:13]}  Kf7 {[%clk 0:00:45]} 42. Qxh5+ {[%clk 0:00:14]}  Kf8 {[%clk 0:00:45]} 43. Qh6+ {[%clk 0:00:14]}  Kf7 {[%clk 0:00:45]} 44. Qh7+ {[%clk 0:00:15]}  Kf8 {[%clk 0:00:45]} 45. Qh6+ {[%clk 0:00:15]}  Kf7 {[%clk 0:00:45]} 46. Qh5+ {[%clk 0:00:15]}  Kf8 {[%clk 0:00:46]} 47. Qf5 {[%clk 0:00:16]}  Qxa4 {[%clk 0:00:43]} 48. Rxf6+ {[%clk 0:00:14]}  Bxf6 {[%clk 0:00:42]} 49. Qxf6+ {[%clk 0:00:15]}  Kg8 {[%clk 0:00:38]} 50. d6 {[%clk 0:00:15]}  Qd1+ {[%clk 0:00:36]} 51. Kh2 {[%clk 0:00:15]}  b5 {[%clk 0:00:30]} 52. Qd4 {[%clk 0:00:16]}  Qxd4 {[%clk 0:00:22]} 53. cxd4 {[%clk 0:00:17]}  Kf7 {[%clk 0:00:23]} 54. d7 {[%clk 0:00:17]}  Ke7 {[%clk 0:00:23]} 55. h5 {[%clk 0:00:18]}  b4 {[%clk 0:00:16]} 56. h6 {[%clk 0:00:19]}  c3 {[%clk 0:00:16]} 57. d8=Q+ {[%clk 0:00:19]}  Kxd8 {[%clk 0:00:16]} 58. bxc3 {[%clk 0:00:20]}  bxc3 {[%clk 0:00:15]} 59. h7 {[%clk 0:00:20]}  c2 {[%clk 0:00:13]} 60. h8=Q+ {[%clk 0:00:21]}  Kd7 {[%clk 0:00:13]} 61. Qh7+ {[%clk 0:00:22]} 1-0


[Site "https://www.chess.com"]

[Event "Titled Tuesday Blitz March 28 Early 2023"]
[White "Grot, Blazej"]
[Black "Annaberdiyev, Meylis"]
[WhiteFideId "21835845"]
[BlackFideId "14000563"]
[WhiteElo "1823"]
[BlackElo "2416"]
[Result "1-0"]
[Round "03"]
[TimeControl "180+2"]
[Date "2023.03.28"]
[WhiteClock "0:01:13"]
[BlackClock "0:00:23"]

1. e4 {[%clk 0:03:00]}  c5 {[%clk 0:02:56]} 2. Nf3 {[%clk 0:03:00]}  e6 {[%clk 0:02:53]} 3. d4 {[%clk 0:02:58]}  cxd4 {[%clk 0:02:28]} 4. Nxd4 {[%clk 0:02:59]}  Nc6 {[%clk 0:02:23]} 5. Nc3 {[%clk 0:02:52]}  Qc7 {[%clk 0:02:19]} 6. Be2 {[%clk 0:02:47]}  a6 {[%clk 0:02:16]} 7. Be3 {[%clk 0:02:45]}  Nf6 {[%clk 0:02:16]} 8. O-O {[%clk 0:02:43]}  b5 {[%clk 0:02:15]} 9. Nxc6 {[%clk 0:02:36]}  dxc6 {[%clk 0:02:15]} 10. f4 {[%clk 0:02:33]}  Be7 {[%clk 0:02:14]} 11. e5 {[%clk 0:02:29]}  Nd5 {[%clk 0:02:14]} 12. Nxd5 {[%clk 0:02:27]}  cxd5 {[%clk 0:02:14]} 13. c3 {[%clk 0:02:28]}  Bd7 {[%clk 0:02:13]} 14. Bd4 {[%clk 0:02:23]}  Bc5 {[%clk 0:02:09]} 15. Bxc5 {[%clk 0:02:20]}  Qxc5+ {[%clk 0:02:09]} 16. Qd4 {[%clk 0:02:17]}  Qxd4+ {[%clk 0:01:43]} 17. cxd4 {[%clk 0:02:18]}  Ke7 {[%clk 0:01:44]} 18. Rac1 {[%clk 0:02:12]}  Rhc8 {[%clk 0:01:43]} 19. Kf2 {[%clk 0:02:12]}  b4 {[%clk 0:01:41]} 20. Ke3 {[%clk 0:02:06]}  Bb5 {[%clk 0:01:40]} 21. Rxc8 {[%clk 0:02:02]}  Rxc8 {[%clk 0:01:39]} 22. Bxb5 {[%clk 0:01:57]}  axb5 {[%clk 0:01:40]} 23. Kd3 {[%clk 0:01:57]}  f5 {[%clk 0:01:32]} 24. Ra1 {[%clk 0:01:53]}  h6 {[%clk 0:01:25]} 25. h4 {[%clk 0:01:46]}  Kf7 {[%clk 0:01:19]} 26. a4 {[%clk 0:01:40]}  bxa3 {[%clk 0:00:33]} 27. Rxa3 {[%clk 0:01:35]}  g5 {[%clk 0:00:31]} 28. Rc3 {[%clk 0:01:29]}  Rc4 {[%clk 0:00:24]} 29. hxg5 {[%clk 0:01:23]}  hxg5 {[%clk 0:00:24]} 30. b3 {[%clk 0:01:19]}  Rb4 {[%clk 0:00:23]} 31. Rc7+ {[%clk 0:01:13]}  Kg6 {[%clk 0:00:23]} 32. Kc3 {[%clk 0:01:13]} 1-0


[Site "https://www.chess.com"]

[Event "Titled Tuesday Blitz March 28 Early 2023"]
[White "Poormosavi, Seyed Kian"]
[Black "Kashtanov, Ruslan"]
[WhiteFideId "12585807"]
[BlackFideId "4124871"]
[WhiteElo "2334"]
[BlackElo "2276"]
[Result "1/2-1/2"]
[Round "03"]
[TimeControl "180+2"]
[Date "2023.03.28"]
[WhiteClock "0:01:28"]
[BlackClock "0:00:13"]

1. Nf3 {[%clk 0:03:00]}  Nf6 {[%clk 0:02:49]} 2. g3 {[%clk 0:03:01]}  d5 {[%clk 0:02:49]} 3. Bg2 {[%clk 0:03:01]}  c5 {[%clk 0:02:49]} 4. O-O {[%clk 0:03:01]}  e6 {[%clk 0:02:49]} 5. d4 {[%clk 0:03:00]}  cxd4 {[%clk 0:02:48]} 6. Nxd4 {[%clk 0:03:01]}  e5 {[%clk 0:02:49]} 7. Nb3 {[%clk 0:03:01]}  Be6 {[%clk 0:02:49]} 8. Bg5 {[%clk 0:03:01]}  Nbd7 {[%clk 0:02:48]} 9. Nc3 {[%clk 0:02:53]}  h6 {[%clk 0:02:44]} 10. Bxf6 {[%clk 0:02:50]}  Nxf6 {[%clk 0:02:44]} 11. e4 {[%clk 0:02:29]}  d4 {[%clk 0:02:43]} 12. Nd5 {[%clk 0:02:30]}  Be7 {[%clk 0:02:28]} 13. c3 {[%clk 0:02:28]}  Nxd5 {[%clk 0:02:20]} 14. exd5 {[%clk 0:02:27]}  Bxd5 {[%clk 0:02:21]} 15. Bxd5 {[%clk 0:02:27]}  Qxd5 {[%clk 0:02:21]} 16. cxd4 {[%clk 0:02:28]}  O-O {[%clk 0:02:18]} 17. dxe5 {[%clk 0:02:28]}  Qxe5 {[%clk 0:02:19]} 18. Re1 {[%clk 0:02:28]}  Qf6 {[%clk 0:02:19]} 19. Qe2 {[%clk 0:02:26]}  Bb4 {[%clk 0:02:17]} 20. Red1 {[%clk 0:02:22]}  Rfe8 {[%clk 0:02:17]} 21. Qb5 {[%clk 0:02:19]}  a5 {[%clk 0:02:08]} 22. Rd7 {[%clk 0:02:14]}  Re1+ {[%clk 0:01:55]} 23. Rxe1 {[%clk 0:02:12]}  Bxe1 {[%clk 0:01:55]} 24. Qe2 {[%clk 0:02:11]}  a4 {[%clk 0:01:46]} 25. Nc5 {[%clk 0:02:08]}  Bb4 {[%clk 0:01:43]} 26. Nxb7 {[%clk 0:02:06]}  Rc8 {[%clk 0:01:37]} 27. Rd1 {[%clk 0:01:48]}  Qb6 {[%clk 0:00:35]} 28. Qe4 {[%clk 0:01:45]}  Bf8 {[%clk 0:00:33]} 29. Kg2 {[%clk 0:01:41]}  Qxb2 {[%clk 0:00:31]} 30. Rd7 {[%clk 0:01:40]}  Qxa2 {[%clk 0:00:29]} 31. Nd8 {[%clk 0:01:39]}  Qc4 {[%clk 0:00:22]} 32. Qe8 {[%clk 0:01:39]}  Qc6+ {[%clk 0:00:16]} 33. Kh3 {[%clk 0:01:36]}  Qe6+ {[%clk 0:00:14]} 34. Qxe6 {[%clk 0:01:33]}  fxe6 {[%clk 0:00:15]} 35. Nxe6 {[%clk 0:01:34]}  Ra8 {[%clk 0:00:14]} 36. Rd2 {[%clk 0:01:30]}  a3 {[%clk 0:00:14]} 37. Ra2 {[%clk 0:01:31]}  Rb8 {[%clk 0:00:14]} 38. Nxf8 {[%clk 0:01:31]}  Kxf8 {[%clk 0:00:13]} 39. Rxa3 {[%clk 0:01:30]}  Kf7 {[%clk 0:00:13]} 40. Kg4 {[%clk 0:01:30]}  Kg6 {[%clk 0:00:13]} 41. Ra6+ {[%clk 0:01:30]}  Kf7 {[%clk 0:00:13]} 42. h4 {[%clk 0:01:31]}  Rb5 {[%clk 0:00:13]} 43. Ra4 {[%clk 0:01:28]}  h5+ {[%clk 0:00:13]} 44. Kf4 {[%clk 0:01:28]}  Kg6 {[%clk 0:00:12]} 45. f3 {[%clk 0:01:29]}  Kf6 {[%clk 0:00:11]} 46. Ra6+ {[%clk 0:01:28]}  Kf7 {[%clk 0:00:11]} 47. g4 {[%clk 0:01:29]}  hxg4 {[%clk 0:00:11]} 48. fxg4 {[%clk 0:01:29]}  Rb4+ {[%clk 0:00:10]} 49. Kf5 {[%clk 0:01:30]}  Rb5+ {[%clk 0:00:11]} 50. Kf4 {[%clk 0:01:30]}  Rb4+ {[%clk 0:00:12]} 51. Kf3 {[%clk 0:01:31]}  Rb3+ {[%clk 0:00:12]} 52. Ke4 {[%clk 0:01:29]}  Rb4+ {[%clk 0:00:12]} 53. Kf5 {[%clk 0:01:29]}  Rb5+ {[%clk 0:00:13]} 54. Kf4 {[%clk 0:01:28]} 1/2-1/2


[Site "https://www.chess.com"]

[Event "Titled Tuesday Blitz March 28 Early 2023"]
[White "The_Sherman_Variation"]
[Black "Shvedova, Alexandra"]
[BlackFideId "54154782"]
[WhiteElo "2628"]
[BlackElo "2057"]
[Result "1-0"]
[Round "03"]
[TimeControl "180+2"]
[Date "2023.03.28"]
[WhiteClock "0:00:41"]
[BlackClock "0:00:19"]

1. b3 {[%clk 0:03:00]}  d5 {[%clk 0:02:56]} 2. g3 {[%clk 0:03:00]}  Nf6 {[%clk 0:02:55]} 3. Bg2 {[%clk 0:03:00]}  e5 {[%clk 0:02:56]} 4. Bb2 {[%clk 0:03:00]}  Bd6 {[%clk 0:02:52]} 5. d3 {[%clk 0:03:01]}  O-O {[%clk 0:02:50]} 6. Nd2 {[%clk 0:03:02]}  Re8 {[%clk 0:02:48]} 7. Ngf3 {[%clk 0:03:01]}  e4 {[%clk 0:02:39]} 8. dxe4 {[%clk 0:02:56]}  dxe4 {[%clk 0:02:40]} 9. Ng5 {[%clk 0:02:54]}  e3 {[%clk 0:02:36]} 10. fxe3 {[%clk 0:02:55]}  Ng4 {[%clk 0:02:30]} 11. Nxf7 {[%clk 0:02:25]}  Kxf7 {[%clk 0:02:22]} 12. Bd5+ {[%clk 0:02:16]}  Be6 {[%clk 0:02:18]} 13. O-O+ {[%clk 0:02:06]}  Kg8 {[%clk 0:02:17]} 14. Ne4 {[%clk 0:02:04]}  Nc6 {[%clk 0:01:58]} 15. Bxe6+ {[%clk 0:01:56]}  Rxe6 {[%clk 0:01:58]} 16. Qd5 {[%clk 0:01:56]}  Qd7 {[%clk 0:01:42]} 17. Nc5 {[%clk 0:01:24]}  Nxe3 {[%clk 0:01:37]} 18. Qxe6+ {[%clk 0:01:24]}  Qxe6 {[%clk 0:01:37]} 19. Nxe6 {[%clk 0:01:24]}  Nxf1 {[%clk 0:01:36]} 20. Rxf1 {[%clk 0:01:25]}  Ne5 {[%clk 0:01:17]} 21. Rf5 {[%clk 0:01:17]}  Re8 {[%clk 0:01:13]} 22. Bxe5 {[%clk 0:01:12]}  Rxe6 {[%clk 0:01:12]} 23. Bxd6 {[%clk 0:01:12]}  Rxd6 {[%clk 0:01:12]} 24. Kf2 {[%clk 0:01:09]}  b6 {[%clk 0:01:05]} 25. Rf4 {[%clk 0:01:07]}  Rd2 {[%clk 0:00:50]} 26. Rc4 {[%clk 0:01:06]}  c5 {[%clk 0:00:51]} 27. Ke3 {[%clk 0:01:02]}  Rd7 {[%clk 0:00:50]} 28. a3 {[%clk 0:01:00]}  Kf7 {[%clk 0:00:48]} 29. c3 {[%clk 0:00:54]}  Re7+ {[%clk 0:00:46]} 30. Kf3 {[%clk 0:00:53]}  Rd7 {[%clk 0:00:44]} 31. b4 {[%clk 0:00:53]}  cxb4 {[%clk 0:00:43]} 32. cxb4 {[%clk 0:00:54]}  Kf6 {[%clk 0:00:40]} 33. Kf4 {[%clk 0:00:49]}  h6 {[%clk 0:00:31]} 34. Rc6+ {[%clk 0:00:48]}  Kf7 {[%clk 0:00:32]} 35. h4 {[%clk 0:00:48]}  Rd4+ {[%clk 0:00:25]} 36. e4 {[%clk 0:00:48]}  Rd7 {[%clk 0:00:23]} 37. h5 {[%clk 0:00:47]}  Re7 {[%clk 0:00:23]} 38. Kf5 {[%clk 0:00:46]}  Rd7 {[%clk 0:00:22]} 39. e5 {[%clk 0:00:46]}  Ke7 {[%clk 0:00:19]} 40. g4 {[%clk 0:00:41]}  Kd8 {[%clk 0:00:17]} 41. Rd6 {[%clk 0:00:36]}  Rxd6 {[%clk 0:00:17]} 42. exd6 {[%clk 0:00:37]}  Kd7 {[%clk 0:00:17]} 43. Kg6 {[%clk 0:00:37]}  Kxd6 {[%clk 0:00:17]} 44. Kxg7 {[%clk 0:00:38]}  Kd5 {[%clk 0:00:17]} 45. Kxh6 {[%clk 0:00:38]}  Kc4 {[%clk 0:00:18]} 46. g5 {[%clk 0:00:39]}  Kb3 {[%clk 0:00:18]} 47. g6 {[%clk 0:00:40]}  Kxa3 {[%clk 0:00:19]} 48. g7 {[%clk 0:00:41]} 1-0


[Site "https://www.chess.com"]

[Event "Titled Tuesday Blitz March 28 Early 2023"]
[White "Vaibhav Jayant Raut"]
[Black "Melikhov, Evgeny V."]
[WhiteFideId "5089034"]
[BlackFideId "4122046"]
[WhiteElo "2156"]
[BlackElo "2158"]
[Result "1-0"]
[Round "03"]
[TimeControl "180+2"]
[Date "2023.03.28"]
[WhiteClock "0:00:07"]
[BlackClock "0:00:02"]

1. e4 {[%clk 0:03:00]}  e5 {[%clk 0:02:59]} 2. Nf3 {[%clk 0:03:00]}  Nc6 {[%clk 0:03:00]} 3. Bc4 {[%clk 0:02:59]}  Nf6 {[%clk 0:02:59]} 4. d3 {[%clk 0:02:58]}  Be7 {[%clk 0:02:59]} 5. O-O {[%clk 0:02:58]}  O-O {[%clk 0:02:58]} 6. c3 {[%clk 0:02:59]}  d6 {[%clk 0:02:55]} 7. h3 {[%clk 0:02:59]}  Na5 {[%clk 0:02:54]} 8. Bb5 {[%clk 0:02:58]}  a6 {[%clk 0:02:54]} 9. Ba4 {[%clk 0:02:58]}  b5 {[%clk 0:02:55]} 10. Bc2 {[%clk 0:02:59]}  c5 {[%clk 0:02:55]} 11. Nbd2 {[%clk 0:02:59]}  Bb7 {[%clk 0:02:55]} 12. d4 {[%clk 0:02:58]}  Qc7 {[%clk 0:02:43]} 13. dxe5 {[%clk 0:02:54]}  dxe5 {[%clk 0:02:43]} 14. Qe2 {[%clk 0:02:55]}  Rfe8 {[%clk 0:02:12]} 15. Re1 {[%clk 0:02:48]}  Bf8 {[%clk 0:02:11]} 16. Nf1 {[%clk 0:02:48]}  Nc4 {[%clk 0:02:06]} 17. b3 {[%clk 0:02:47]}  Nb6 {[%clk 0:02:02]} 18. Bg5 {[%clk 0:02:43]}  Re6 {[%clk 0:01:52]} 19. Ng3 {[%clk 0:02:40]}  h6 {[%clk 0:01:51]} 20. Be3 {[%clk 0:02:40]}  Rd8 {[%clk 0:01:43]} 21. Red1 {[%clk 0:02:35]}  Red6 {[%clk 0:01:40]} 22. Rxd6 {[%clk 0:02:34]}  Qxd6 {[%clk 0:01:37]} 23. Rd1 {[%clk 0:02:32]}  Qc7 {[%clk 0:01:35]} 24. Rxd8 {[%clk 0:02:31]}  Qxd8 {[%clk 0:01:35]} 25. Nxe5 {[%clk 0:02:31]}  Qe7 {[%clk 0:01:25]} 26. Ng4 {[%clk 0:02:15]}  Nxe4 {[%clk 0:01:18]} 27. Nxe4 {[%clk 0:01:15]}  Bxe4 {[%clk 0:01:17]} 28. Bxc5 {[%clk 0:01:15]}  Qxc5 {[%clk 0:01:15]} 29. Qxe4 {[%clk 0:01:14]}  g6 {[%clk 0:01:10]} 30. Qf3 {[%clk 0:01:07]}  Bg7 {[%clk 0:01:05]} 31. Nf6+ {[%clk 0:00:46]}  Kh8 {[%clk 0:00:57]} 32. Ne8 {[%clk 0:00:36]}  Qd5 {[%clk 0:00:16]} 33. Be4 {[%clk 0:00:27]}  Qe6 {[%clk 0:00:14]} 34. Nc7 {[%clk 0:00:26]}  Qe7 {[%clk 0:00:13]} 35. Nxa6 {[%clk 0:00:23]}  Kh7 {[%clk 0:00:13]} 36. g3 {[%clk 0:00:18]}  f6 {[%clk 0:00:13]} 37. h4 {[%clk 0:00:16]}  f5 {[%clk 0:00:13]} 38. Bc6 {[%clk 0:00:16]}  Qe5 {[%clk 0:00:12]} 39. h5 {[%clk 0:00:15]}  g5 {[%clk 0:00:12]} 40. Qd3 {[%clk 0:00:12]}  Qxc3 {[%clk 0:00:08]} 41. Qxf5+ {[%clk 0:00:12]}  Kg8 {[%clk 0:00:08]} 42. Qxb5 {[%clk 0:00:10]}  Bd4 {[%clk 0:00:05]} 43. Kg2 {[%clk 0:00:10]}  Qd2 {[%clk 0:00:05]} 44. Qf5 {[%clk 0:00:09]}  Nc8 {[%clk 0:00:01]} 45. Qxc8+ {[%clk 0:00:09]}  Kf7 {[%clk 0:00:01]} 46. Qf5+ {[%clk 0:00:08]}  Ke7 {[%clk 0:00:02]} 47. Bd5 {[%clk 0:00:07]}  Kd6 {[%clk 0:00:02]} 48. Qe6# {[%clk 0:00:07]} 1-0


[Site "https://www.chess.com"]